bitfinex/quotes_SOLUSD_20230102
["timestamp","ask_amount","ask_price","bid_price","bid_amount"]
[1672621249481,75.75,9.9167,9.9029,94.33039764]
[1672621249686,30.0,9.9166,9.903,74.33039764]
[1672621249902,75.75,9.9165,9.903,153.03062023]
[1672621250119,75.75,9.9165,9.9031,153.03062023]
[1672621250530,183.0896,9.9164,9.9033,30.0]
[1672621250739,105.75,9.9163,9.9033,30.0]
[1672621250950,105.75,9.9163,9.9034,216.90421129]
[1672621251159,159.7652,9.9162,9.9035,30.0]
[1672621251485,105.75,9.9161,9.9036,59.6673221]
[1672621251699,265.5152,9.9161,9.9036,207.61536734]
[1672621251914,265.5152,9.9161,9.9038,30.0]
[1672621252338,161.0796,9.916,9.9039,147.94804524]
[1672621252541,30.0,9.9158,9.9039,147.94804524]
[1672621252757,75.76,9.9157,9.904,147.94804524]
[1672621252955,30.0,9.9156,9.904,147.94804524]
[1672621253167,30.0,9.9154,9.9041,147.94804524]
[1672621253377,75.76,9.9153,9.9041,147.94804524]
[1672621253582,30.0,9.9152,9.9042,74.33039764]
[1672621253798,30.0,9.915,9.9042,74.33039764]
[1672621254007,75.76,9.9149,9.9043,74.33039764]
[1672621254324,30.0,9.9148,9.9044,74.33039764]
[1672621254531,30.0,9.9146,9.9044,74.33039764]
[1672621254741,75.77,9.9145,9.9045,15.80730786]
[1672621255277,30.0,9.9143,9.9045,15.80730786]
[1672621255488,30.0,9.9141,9.9045,15.80730786]
[1672621255703,75.77,9.914,9.9045,15.80730786]
[1672621255911,75.77,9.914,9.9045,74.33039764]
[1672621256320,30.0,9.9138,9.9046,15.80730786]
[1672621256646,30.0,9.9136,9.9047,88.52308978]
[1672621256861,75.77,9.9135,9.9047,162.05407071]
[1672621257066,160.1673,9.9137,9.9048,74.33039764]
[1672621257280,170.69430742,9.9136,9.9048,147.86137857]
[1672621257472,330.86160742,9.9136,9.905,30.0]
[1672621257890,160.1673,9.9136,9.9051,147.86137857]
[1672621258112,160.1673,9.9135,9.9052,30.0]
[1672621258325,160.1673,9.9135,9.9052,177.86137857]
[1672621258543,160.1673,9.9135,9.9054,30.0]
[1672621258732,155.0582,9.9134,9.9054,30.0]
[1672621258945,5.79,9.92,9.9058,75.43309157]
[1672621259150,5.79,9.92,9.906,30.0]
[1672621259377,30.0,9.9278,9.9061,20.0]
[1672621259594,109.5888,9.918,9.9062,30.0]
[1672621259797,109.5888,9.9179,9.91,5.73]
[1672621259996,109.5888,9.9179,9.9101,20.0]
[1672621260430,109.5888,9.9179,9.9101,88.60039764]
[1672621260754,20.46644537,9.9178,9.9102,48.10469935]
[1672621261271,30.0,9.9177,9.9102,23.95280444]
[1672621261490,30.0,9.9177,9.9103,17.88918]
[1672621261692,50.46644537,9.9178,9.9103,15.80730786]
[1672621261907,30.0,9.9177,9.9103,15.80730786]
[1672621262098,75.74,9.9176,9.91,5.74]
[1672621262522,30.0,9.9175,9.91,5.74]
[1672621262847,30.0,9.9173,9.91,5.74]
[1672621263056,75.75,9.9172,9.91,5.74]
[1672621263274,30.0,9.9171,9.9101,20.0]
[1672621263480,30.0,9.9169,9.9101,20.0]
[1672621263691,75.75,9.9168,9.9101,20.0]
[1672621263904,30.0,9.9167,9.9101,20.0]
[1672621264121,75.75,9.9168,9.9101,20.0]
[1672621264333,75.75,9.9171,9.9102,30.0]
[1672621264656,30.0,9.917,9.9103,20.0]
[1672621264848,30.0,9.9168,9.9101,20.0]
[1672621265061,75.75,9.9167,9.9101,20.0]
[1672621265392,30.0,9.9166,9.9101,20.0]
[1672621265790,75.75,9.9167,9.9101,20.0]
[1672621266003,20.4605265,9.9172,9.9103,30.0]
[1672621266429,20.4605265,9.9172,9.9105,30.0]
[1672621266645,20.4605265,9.9172,9.9107,30.0]
[1672621266838,20.4605265,9.9172,9.9109,30.0]
[1672621267054,20.4605265,9.9172,9.911,50.03589698]
[1672621267259,20.4605265,9.9172,9.9111,30.03559394]
[1672621267492,30.0,9.9171,9.9112,12.3255336]
[1672621267688,30.0,9.9169,9.9113,20.0]
[1672621267890,30.0,9.9167,9.911,35.80730786]
[1672621268100,75.75,9.9166,9.911,35.80730786]
[1672621268325,30.0,9.9165,9.9111,14.32292314]
[1672621268539,30.0,9.9163,9.9112,20.0]
[1672621268730,75.75,9.9162,9.9112,35.80730786]
[1672621268947,30.0,9.9161,9.9113,15.80730786]
[1672621269157,30.0,9.9159,9.9114,20.0]
[1672621269494,30.0,9.9157,9.9112,20.0]
[1672621269680,30.0,9.9157,9.9107,20.0]
[1672621269681,75.76,9.9156,9.9107,20.0]
[1672621269890,30.0,9.9155,9.9107,26.32292314]
[1672621270102,30.0,9.9153,9.9107,26.32292314]
[1672621270338,30.0,9.9151,9.9107,42.130231]
[1672621270538,75.76,9.915,9.9108,4.20624611]
[1672621270742,30.0,9.9151,9.9106,15.80730786]
[1672621270943,30.0,9.9151,9.9108,8.0]
[1672621271155,30.0,9.9151,9.9109,37.52292314]
[1672621271358,30.0,9.9151,9.9109,20.0]
[1672621271696,20.43881784,9.915,9.9109,20.0]
[1672621271911,20.43881784,9.915,9.911,30.130231]
[1672621272104,20.43881784,9.915,9.9111,33.72916926]
[1672621272321,20.43881784,9.915,9.9111,42.130231]
[1672621272540,75.76,9.9156,9.9112,15.80730786]
[1672621272748,75.76,9.9156,9.9113,20.0]
[1672621273060,30.0,9.9155,9.9113,20.0]
[1672621273269,30.0,9.9155,9.9114,15.80730786]
[1672621273719,30.0,9.9157,9.9115,20.0]
[1672621274957,30.0,9.9155,9.9115,20.0]
[1672621275687,20.44276559,9.9154,9.9115,20.0]
[1672621276430,20.44276559,9.9154,9.9116,15.80730786]
[1672621276848,20.44276559,9.9154,9.9117,20.0]
[1672621277253,20.44276559,9.9154,9.9118,15.80730786]
[1672621277798,113.3556,9.9174,9.9119,20.0]
[1672621278331,30.0,9.9173,9.912,15.80730786]
[1672621278723,113.3556,9.9174,9.9121,20.0]
[1672621279151,30.0,9.9173,9.9122,15.80730786]
[1672621279358,30.0,9.9173,9.9123,20.0]
[1672621279576,50.46151303,9.9173,9.9123,20.0]
[1672621279772,20.46151303,9.9173,9.9124,15.80730786]
[1672621280302,30.0,9.9172,9.9125,20.0]
[1672621280508,75.75,9.9171,9.9125,20.0]
[1672621280728,30.0,9.917,9.9119,20.0]
[1672621280937,30.0,9.9168,9.9119,20.0]
[1672621281568,30.0,9.9168,9.9119,35.80730786]
[1672621282296,75.75,9.9169,9.9119,35.80730786]
[1672621282498,20.46151303,9.9173,9.9119,35.80730786]
[1672621282817,20.46151303,9.9173,9.912,30.0]
[1672621283345,20.46151303,9.9173,9.9121,35.80730786]
[1672621283773,20.46151303,9.9173,9.9122,15.80730786]
[1672621283982,20.46151303,9.9173,9.9123,20.0]
[1672621284409,20.46151303,9.9173,9.9124,15.80730786]
[1672621284811,20.46151303,9.9173,9.9125,20.0]
[1672621285243,20.46151303,9.9173,9.9126,15.80730786]
[1672621285863,20.46151303,9.9173,9.9127,20.0]
[1672621286304,20.46151303,9.9173,9.9128,15.80730786]
[1672621286716,20.46151303,9.9173,9.9129,20.0]
[1672621287149,20.46151303,9.9173,9.913,15.80730786]
[1672621287878,20.46151303,9.9173,9.9131,30.0]
[1672621288290,20.46151303,9.9173,9.9132,15.80730786]
[1672621288710,20.46151303,9.9173,9.9134,30.0]
[1672621289028,20.46151303,9.9173,9.9135,15.80730786]
[1672621291141,20.46151303,9.9173,9.9137,30.0]
[1672621291536,20.46151303,9.9173,9.9138,15.80730786]
[1672621295115,20.46151303,9.9173,9.9139,30.0]
[1672621295336,20.46151303,9.9173,9.9138,15.80730786]
[1672621295531,20.46151303,9.9173,9.9141,30.0]
[1672621295745,20.46151303,9.9173,9.914,15.80730786]
[1672621295968,20.46151303,9.9173,9.9143,15.8419941]
[1672621296186,20.46151303,9.9173,9.9142,15.80730786]
[1672621296396,20.46151303,9.9173,9.9144,15.80730786]
[1672621304286,20.46151303,9.9173,9.9145,67.48436044]
[1672621304521,20.46151303,9.9173,9.9146,30.0]
[1672621304739,20.46151303,9.9173,9.9146,45.80730786]
[1672621304944,20.46151303,9.9173,9.9147,83.2916683]
[1672621305376,20.46151303,9.9173,9.9148,15.80730786]
[1672621310091,20.46151303,9.9173,9.9149,73.35651332]
[1672621310408,20.46151303,9.9173,9.915,45.80730786]
[1672621310622,20.46151303,9.9173,9.915,95.93377515]
[1672621310833,20.46151303,9.9173,9.9152,30.0]
[1672621311140,20.46151303,9.9173,9.9153,89.16382118]
[1672621311356,20.46151303,9.9173,9.9154,30.0]
[1672621311663,20.46151303,9.9173,9.9155,73.35651332]
[1672621311977,20.46151303,9.9173,9.9156,45.80730786]
[1672621312380,20.46151303,9.9173,9.9157,89.16382118]
[1672621312809,20.46151303,9.9173,9.9158,15.80730786]
[1672621313441,20.46151303,9.9173,9.9159,30.0]
[1672621313658,24.6013,9.9197,9.9159,30.0]
[1672621313854,24.6013,9.9197,9.916,15.80730786]
[1672621314603,20.46447249,9.9176,9.916,15.80730786]
[1672621315738,24.6013,9.9197,9.916,15.80730786]
[1672621316587,20.48419769,9.9196,9.916,15.80730786]
[1672621318270,20.48419769,9.9196,9.916,89.16382118]
[1672621318678,4.67688983,9.9196,9.9164,75.43309157]
[1672621318889,0.00688983,9.9196,9.9166,30.0]
[1672621319118,30.0,9.9297,9.9168,30.0]
[1672621319304,30.0,9.9295,9.92,5.78]
[1672621319518,75.65,9.9294,9.9201,20.0]
[1672621319746,30.0,9.9293,9.9201,20.0]
[1672621320044,30.0,9.9291,9.9202,152.74550775]
[1672621320270,75.66,9.929,9.9203,20.0]
[1672621320513,30.0,9.9289,9.9204,30.0]
[1672621320697,30.0,9.9287,9.9205,20.0]
[1672621320902,75.66,9.9286,9.9205,20.0]
[1672621321110,30.0,9.9285,9.9205,110.50525071]
[1672621321432,30.0,9.9283,9.9205,20.0]
[1672621321647,30.0,9.9281,9.9197,20.0]
[1672621321960,30.0,9.9279,9.9197,20.0]
[1672621322155,75.67,9.9278,9.9197,94.69794285]
[1672621322376,30.0,9.9277,9.9197,94.69794285]
[1672621322570,75.67,9.9276,9.9197,94.69794285]
[1672621322785,30.0,9.9275,9.9197,94.69794285]
[1672621323007,30.0,9.9273,9.9197,94.69794285]
[1672621323211,75.67,9.9272,9.9197,94.69794285]
[1672621323422,30.0,9.9271,9.9197,94.69794285]
[1672621323630,30.0,9.9269,9.9197,94.69794285]
[1672621323840,75.67,9.9268,9.9197,94.69794285]
[1672621324050,30.0,9.9267,9.9197,94.69794285]
[1672621324268,30.0,9.9265,9.9197,94.69794285]
[1672621324479,75.68,9.9264,9.9197,94.69794285]
[1672621324696,30.0,9.9263,9.9197,94.69794285]
[1672621324878,30.0,9.9261,9.9197,94.69794285]
[1672621325199,30.0,9.9259,9.9197,94.69794285]
[1672621325406,75.68,9.9258,9.9197,94.69794285]
[1672621325602,30.0,9.9257,9.9197,94.69794285]
[1672621325821,30.0,9.9255,9.9197,94.69794285]
[1672621326681,75.68,9.9256,9.9197,94.69794285]
[1672621326879,30.0,9.9263,9.92,5.78]
[1672621327095,30.0,9.9263,9.9201,20.0]
[1672621327291,30.0,9.9263,9.9201,94.69794285]
[1672621327505,30.0,9.9263,9.9202,74.69794285]
[1672621327717,18.83493585,9.9262,9.9203,20.0]
[1672621327933,18.83493585,9.9262,9.9203,35.80730786]
[1672621328128,18.83493585,9.9262,9.9204,74.69794285]
[1672621328448,18.83493585,9.9262,9.9205,35.80730786]
[1672621328773,18.83493585,9.9262,9.9206,90.50525071]
[1672621328959,18.83493585,9.9262,9.9207,20.0]
[1672621329294,18.83493585,9.9262,9.9208,15.80730786]
[1672621329923,18.83493585,9.9262,9.9209,20.0]
[1672621330322,18.83493585,9.9262,9.921,15.80730786]
[1672621330753,24.3504,9.9271,9.9211,19.0]
[1672621330984,54.3504,9.9271,9.9211,19.0]
[1672621331194,54.3504,9.9271,9.9212,15.80730786]
[1672621331714,18.84182862,9.9269,9.9212,15.80730786]
[1672621332335,18.84182862,9.9269,9.9213,20.0]
[1672621332750,18.84182862,9.9269,9.9214,15.80730786]
[1672621333269,18.84182862,9.9269,9.9215,20.0]
[1672621333708,18.84182862,9.9269,9.9216,15.80730786]
[1672621333919,18.84182862,9.9269,9.9217,20.0]
[1672621334326,18.84182862,9.9269,9.9218,90.50525071]
[1672621334542,18.84182862,9.9269,9.9219,20.0]
[1672621334854,18.84182862,9.9269,9.922,15.80730786]
[1672621335074,18.84182862,9.9269,9.9221,20.0]
[1672621335283,18.84182862,9.9269,9.9221,94.69794285]
[1672621335605,18.84182862,9.9269,9.9222,196.99883555]
[1672621335808,18.84182862,9.9269,9.9223,20.0]
[1672621336124,18.84182862,9.9269,9.9224,30.0]
[1672621336337,18.84182862,9.9269,9.9226,30.0]
[1672621336653,18.84182862,9.9269,9.9228,30.0]
[1672621336851,18.84182862,9.9269,9.923,30.0]
[1672621337063,18.84182862,9.9269,9.9231,20.0]
[1672621337283,18.84182862,9.9269,9.9231,246.05344087]
[1672621337477,18.84182862,9.9269,9.9232,159.4345919]
[1672621337681,18.84182862,9.9269,9.9232,258.22741709]
[1672621337925,18.84182862,9.9269,9.9234,30.0]
[1672621338323,18.84182862,9.9269,9.9236,30.0]
[1672621338746,18.84182862,9.9269,9.9238,30.0]
[1672621339066,18.84182862,9.9269,9.9239,173.49076804]
[1672621339271,18.84182862,9.9269,9.924,30.0]
[1672621339594,18.84182862,9.9269,9.924,173.49076804]
[1672621339905,18.84182862,9.9269,9.9239,54.73664905]
[1672621339906,18.84182862,9.9269,9.9242,30.0]
[1672621340442,18.84182862,9.9269,9.9243,173.49076804]
[1672621340837,18.84182862,9.9269,9.9244,173.49076804]
[1672621341165,18.84182862,9.9269,9.9245,203.49076804]
[1672621341381,18.84182862,9.9269,9.9245,173.49076804]
[1672621341701,18.84182862,9.9269,9.9246,173.49076804]
[1672621342108,18.84182862,9.9269,9.9247,173.49076804]
[1672621342540,18.84182862,9.9269,9.9248,98.79282519]
[1672621342974,18.84182862,9.9269,9.9249,98.79282519]
[1672621343171,18.84182862,9.9269,9.925,30.0]
[1672621343384,18.84182862,9.9269,9.925,203.49076804]
[1672621343592,18.84182862,9.9269,9.9251,98.79282519]
[1672621343793,18.84182862,9.9269,9.9252,30.0]
[1672621344000,18.84182862,9.9269,9.9252,128.79282519]
[1672621344221,18.84182862,9.9269,9.9253,98.79282519]
[1672621344437,18.84182862,9.9269,9.9254,30.0]
[1672621344647,160.7000592,9.928,9.9254,45.80730786]
[1672621344846,43.4288592,9.928,9.9254,30.0]
[1672621345051,43.4288592,9.928,9.9255,15.80730786]
[1672621345695,43.4288592,9.928,9.9256,30.0]
[1672621346016,43.4288592,9.928,9.9257,82.98551733]
[1672621346204,43.4288592,9.928,9.9258,30.0]
[1672621346414,43.4288592,9.928,9.9258,45.80730786]
[1672621346633,43.4288592,9.928,9.9259,15.80730786]
[1672621346841,18.8327592,9.928,9.9259,15.80730786]
[1672621348619,24.0607,9.9305,9.9259,15.80730786]
[1672621350418,30.0,9.9303,9.9259,15.80730786]
[1672621350633,75.65,9.9302,9.9259,15.80730786]
[1672621350951,30.0,9.9301,9.9259,15.80730786]
[1672621351266,30.0,9.9299,9.9259,15.80730786]
[1672621351475,30.0,9.9297,9.9259,15.80730786]
[1672621352720,18.85933647,9.9296,9.9259,15.80730786]
[1672621352937,30.0,9.9295,9.9259,15.80730786]
[1672621353159,30.0,9.9295,9.9245,82.98551733]
[1672621353566,30.0,9.9295,9.9249,15.80730786]
[1672621354392,30.0,9.9295,9.9252,15.80730786]
[1672621355446,30.0,9.9295,9.9252,98.79282519]
[1672621355889,30.0,9.9295,9.9253,15.80730786]
[1672621356631,18.85736828,9.9294,9.9253,15.80730786]
[1672621357357,18.85736828,9.9294,9.9254,82.98551733]
[1672621357780,18.85736828,9.9294,9.9254,98.79282519]
[1672621361539,30.0,9.9299,9.9254,82.98551733]
[1672621362596,18.86130459,9.9298,9.9254,82.98551733]
[1672621363020,30.0,9.9297,9.9254,82.98551733]
[1672621365551,18.85933647,9.9296,9.9254,82.98551733]
[1672621365977,18.85933647,9.9296,9.9255,15.80730786]
[1672621366188,18.85933647,9.9296,9.9255,0.00730786]
[1672621366401,18.85933647,9.9296,9.9172,23.1952]
[1672621366402,30.0,9.9294,9.918,43.0465]
[1672621366717,30.0,9.9294,9.918,97.78314905]
[1672621366718,75.65,9.9293,9.918,97.78314905]
[1672621367247,30.0,9.9291,9.918,97.78314905]
[1672621367458,75.66,9.929,9.918,97.78314905]
[1672621367656,30.0,9.9289,9.918,97.78314905]
[1672621367852,75.66,9.9288,9.918,97.78314905]
[1672621368066,30.0,9.9287,9.918,97.78314905]
[1672621368285,75.66,9.9286,9.918,77.78314905]
[1672621368508,20.0,9.9285,9.9114,161.01988195]
[1672621368818,5.78,9.92,9.9142,15.80730786]
[1672621369231,30.0,9.9283,9.9143,30.0]
[1672621369444,95.66,9.9282,9.9143,95.37634132]
[1672621369648,30.0,9.9281,9.9144,135.26814648]
[1672621369970,95.66,9.928,9.9145,80.53149743]
[1672621370185,30.0,9.9279,9.9146,30.0]
[1672621370501,30.0,9.9277,9.9147,80.53149743]
[1672621370814,30.0,9.9275,9.9148,110.53149743]
[1672621371005,75.67,9.9274,9.9148,175.90783875]
[1672621371215,30.0,9.9273,9.9149,80.53149743]
[1672621371442,75.67,9.9272,9.9149,80.53149743]
[1672621371768,30.0,9.9271,9.915,175.90783875]
[1672621371947,30.0,9.9269,9.915,175.90783875]
[1672621372162,30.0,9.9267,9.9152,30.0]
[1672621372385,75.67,9.9266,9.9152,30.0]
[1672621372594,30.0,9.9265,9.9154,30.0]
[1672621372809,30.0,9.9263,9.9154,30.0]
[1672621373037,75.68,9.9262,9.9155,80.53149743]
[1672621373222,30.0,9.9261,9.9155,80.53149743]
[1672621373547,30.0,9.9261,9.9156,15.80730786]
[1672621373548,30.0,9.9259,9.9156,15.80730786]
[1672621373750,75.68,9.9258,9.9156,15.80730786]
[1672621374065,30.0,9.9257,9.9156,15.80730786]
[1672621374263,75.68,9.9256,9.9156,15.80730786]
[1672621374472,30.0,9.9255,9.9156,15.80730786]
[1672621374692,30.0,9.9253,9.9156,15.80730786]
[1672621374910,75.69,9.9252,9.9156,15.80730786]
[1672621375123,30.0,9.9251,9.9156,15.80730786]
[1672621375330,75.69,9.925,9.9156,15.80730786]
[1672621375639,30.0,9.9249,9.9156,15.80730786]
[1672621375855,75.69,9.9248,9.91,5.75]
[1672621376046,75.69,9.9248,9.9117,45.8398499]
[1672621376047,30.0,9.9247,9.9117,45.8398499]
[1672621376261,30.0,9.9245,9.9118,50.03223903]
[1672621376467,30.0,9.9245,9.9119,30.03193604]
[1672621376468,30.0,9.9243,9.9119,30.03193604]
[1672621376679,75.69,9.9242,9.9119,110.56313048]
[1672621376907,30.0,9.9241,9.912,35.80730786]
[1672621377111,30.0,9.9239,9.9122,30.0]
[1672621377336,75.7,9.9238,9.9123,50.03072412]
[1672621377553,30.0,9.9237,9.9124,30.03042116]
[1672621377766,30.0,9.9235,9.9126,30.0]
[1672621377952,75.7,9.9234,9.9127,30.02951231]
[1672621378170,30.0,9.9233,9.9127,64.72418957]
[1672621378381,165.2012,9.9234,9.9129,30.0]
[1672621378714,165.2012,9.9234,9.913,65.37634132]
[1672621378908,30.0,9.9233,9.9131,30.0]
[1672621379116,105.7,9.9233,9.9131,110.53149743]
[1672621379339,105.7,9.9233,9.9133,30.0]
[1672621379544,30.0,9.9231,9.9133,30.0]
[1672621379872,30.0,9.9231,9.9135,30.0]
[1672621380086,241.2975,9.923,9.9135,30.0]
[1672621380400,30.0,9.9229,9.9137,30.0]
[1672621380586,165.5975,9.9229,9.9137,30.0]
[1672621380791,165.5975,9.9229,9.9139,30.0]
[1672621381223,30.0,9.9227,9.914,15.80730786]
[1672621381442,45.8691,9.9226,9.914,15.80730786]
[1672621382062,164.0235,9.9225,9.914,13.30730786]
[1672621382279,164.0235,9.9225,9.9141,15.80730786]
[1672621382705,138.8377,9.9224,9.9139,30.0]
[1672621382893,138.8377,9.9224,9.9141,30.0]
[1672621383327,138.8377,9.9223,9.9142,15.80730786]
[1672621383863,22.8633,9.9222,9.9142,13.30730786]
[1672621384071,22.8633,9.9222,9.9143,15.80730786]
[1672621384387,22.8633,9.9222,9.9141,30.0]
[1672621384582,23.5497,9.9221,9.9142,15.80730786]
[1672621385207,23.5497,9.922,9.9142,15.80730786]
[1672621385853,23.5497,9.9219,9.9142,15.80730786]
[1672621386690,42.33221821,9.9218,9.9142,15.80730786]
[1672621387327,23.5497,9.9217,9.9142,15.80730786]
[1672621388082,23.3988,9.9216,9.9142,15.80730786]
[1672621388472,23.3988,9.9215,9.9142,15.80730786]
[1672621389111,18.78251821,9.9218,9.9142,15.80730786]
[1672621389112,23.3988,9.9214,9.9142,15.80730786]
[1672621389729,23.3988,9.9213,9.9142,15.80730786]
[1672621390358,23.3988,9.9212,9.9142,15.80730786]
[1672621390887,42.17540411,9.9212,9.9142,15.80730786]
[1672621391100,23.8311,9.9211,9.9142,15.80730786]
[1672621391735,23.8311,9.921,9.9142,15.80730786]
[1672621392595,23.8311,9.9209,9.9142,15.80730786]
[1672621393955,18.77660411,9.9212,9.9144,302.2]
[1672621394168,18.77660411,9.9212,9.9145,50.0]
[1672621394369,18.77660411,9.9212,9.9148,30.0]
[1672621394579,75.67,9.927,9.9148,30.0]
[1672621394910,75.67,9.9272,9.915,30.0]
[1672621395221,75.67,9.9274,9.9152,332.2]
[1672621395414,75.67,9.9274,9.92,11.56]
[1672621395625,18.83472838,9.9271,9.92,11.56]
[1672621395851,18.83472838,9.9271,9.9201,35.80730786]
[1672621396165,18.83472838,9.9271,9.9202,44.80730786]
[1672621396487,18.83472838,9.9271,9.9203,110.89591571]
[1672621396796,18.83472838,9.9271,9.9204,120.89591571]
[1672621397203,18.83472838,9.9271,9.9205,110.89591571]
[1672621397414,18.83472838,9.9271,9.9206,30.0]
[1672621397624,18.83472838,9.9271,9.9206,120.89591571]
[1672621397843,18.83472838,9.9271,9.9208,30.0]
[1672621398376,18.83472838,9.9271,9.921,30.0]
[1672621398565,18.83472838,9.9271,9.9211,20.0]
[1672621398775,18.83472838,9.9271,9.9211,35.80730786]
[1672621398985,18.83472838,9.9271,9.9212,15.80730786]
[1672621399211,18.83472838,9.9271,9.9214,30.0]
[1672621399399,18.83472838,9.9271,9.9215,20.0]
[1672621399614,18.83472838,9.9271,9.9216,30.0]
[1672621399842,18.83472838,9.9271,9.9217,20.0]
[1672621400046,18.83472838,9.9271,9.9218,30.0]
[1672621400249,18.83472838,9.9271,9.9219,20.0]
[1672621400575,18.83472838,9.9271,9.922,30.0]
[1672621400772,18.83472838,9.9271,9.9221,20.0]
[1672621400983,18.83472838,9.9271,9.9222,30.0]
[1672621401217,18.83472838,9.9271,9.9222,45.80730786]
[1672621401404,18.83472838,9.9271,9.9223,20.0]
[1672621401616,18.83472838,9.9271,9.9224,30.0]
[1672621401828,18.83472838,9.9271,9.9225,20.0]
[1672621402038,18.83472838,9.9271,9.9226,30.0]
[1672621402252,18.83472838,9.9271,9.9227,20.0]
[1672621402575,18.83472838,9.9271,9.9228,30.0]
[1672621402786,18.83472838,9.9271,9.9229,20.0]
[1672621403118,18.83472838,9.9271,9.923,30.0]
[1672621403309,18.83472838,9.9271,9.9231,20.0]
[1672621403524,18.83472838,9.9271,9.9231,338.00730786]
[1672621403731,18.83472838,9.9271,9.9234,30.0]
[1672621403941,18.83472838,9.9271,9.9235,20.0]
[1672621404148,18.83472838,9.9271,9.9236,30.0]
[1672621404471,18.83472838,9.9271,9.9238,30.0]
[1672621404683,30.0,9.9339,9.924,30.0]
[1672621404894,30.0,9.9339,9.9241,20.0]
[1672621405103,30.0,9.9339,9.9242,30.0]
[1672621405307,30.0,9.9339,9.9244,30.0]
[1672621405517,30.0,9.9339,9.9245,20.0]
[1672621405737,30.0,9.9339,9.9246,30.0]
[1672621405738,18.90065018,9.9338,9.9246,30.0]
[1672621405937,18.90065018,9.9338,9.9246,102.83046532]
[1672621406149,18.90065018,9.9338,9.9247,15.80730786]
[1672621406357,75.62,9.9337,9.92,11.48]
[1672621406563,30.0,9.9336,9.9219,54.76062255]
[1672621406780,30.0,9.9334,9.922,20.0]
[1672621406999,75.62,9.9333,9.922,20.0]
[1672621407212,30.0,9.9332,9.9221,54.76062255]
[1672621407420,30.0,9.933,9.9222,20.0]
[1672621407628,75.63,9.9329,9.9222,20.0]
[1672621407838,30.0,9.9328,9.9223,127.59108787]
[1672621408048,30.0,9.9326,9.9223,143.39839573]
[1672621408254,30.0,9.9324,9.9224,143.39839573]
[1672621408466,75.63,9.9323,9.9224,143.39839573]
[1672621408680,30.0,9.9322,9.9225,70.56793041]
[1672621408885,30.0,9.932,9.9225,70.56793041]
[1672621409094,30.0,9.9318,9.9226,70.56793041]
[1672621409318,75.64,9.9317,9.9226,70.56793041]
[1672621409531,75.64,9.9317,9.9227,70.56793041]
[1672621409532,30.0,9.9316,9.9227,70.56793041]
[1672621409845,75.64,9.9315,9.9229,30.0]
[1672621410034,162.3149,9.9315,9.9231,30.0]
[1672621410245,30.0,9.9313,9.9232,20.0]
[1672621410448,30.0,9.9313,9.9233,30.0]
[1672621410682,24.4518,9.9312,9.9233,157.59108787]
[1672621410883,24.4518,9.9312,9.9234,108.63777318]
[1672621411117,24.4518,9.9312,9.9235,30.0]
[1672621411294,24.4518,9.9311,9.9236,20.0]
[1672621411500,24.4518,9.9311,9.9236,108.63777318]
[1672621411715,24.4518,9.9311,9.9237,102.83046532]
[1672621411940,24.4518,9.931,9.9237,118.63777318]
[1672621412146,24.4518,9.931,9.9239,30.0]
[1672621412572,24.4518,9.9309,9.924,88.63777318]
[1672621412991,24.4518,9.9309,9.9241,15.80730786]
[1672621413202,24.4518,9.9308,9.9241,15.80730786]
[1672621413816,22.6904,9.9307,9.9242,102.83046532]
[1672621414250,22.6904,9.9307,9.9244,30.0]
[1672621414466,22.6904,9.9306,9.9244,30.0]
[1672621414685,41.55957624,9.9306,9.9246,30.0]
[1672621415087,41.55957624,9.9306,9.9248,30.0]
[1672621415520,41.55957624,9.9306,9.925,30.0]
[1672621415950,41.55957624,9.9306,9.9252,30.0]
[1672621416347,41.55957624,9.9306,9.9254,30.0]
[1672621416775,41.55957624,9.9306,9.9256,30.0]
[1672621417190,41.55957624,9.9306,9.9257,15.80730786]
[1672621417628,41.55957624,9.9306,9.9259,30.0]
[1672621418031,41.55957624,9.9306,9.926,88.63777318]
[1672621418364,41.55957624,9.9306,9.9262,30.0]
[1672621418554,41.55957624,9.9306,9.9261,88.63777318]
[1672621418761,41.55957624,9.9306,9.9263,88.63777318]
[1672621418975,41.55957624,9.9306,9.9264,30.0]
[1672621419206,41.55957624,9.9306,9.9264,118.63777318]
[1672621419521,41.55957624,9.9306,9.9266,30.0]
[1672621419939,41.55957624,9.9306,9.9267,88.63777318]
[1672621420344,41.55957624,9.9306,9.9268,102.83046532]
[1672621420866,41.55957624,9.9306,9.9266,30.0]
[1672621420867,18.86917624,9.9306,9.9269,163.39839573]
[1672621421304,18.86917624,9.9306,9.927,70.56793041]
[1672621421511,18.86917624,9.9306,9.9271,20.0]
[1672621421707,30.0,9.9328,9.9271,74.76062255]
[1672621421926,30.0,9.9328,9.9272,54.76062255]
[1672621422129,30.0,9.9328,9.9273,20.0]
[1672621422549,30.0,9.9328,9.9274,54.76062255]
[1672621422774,18.8898333,9.9327,9.9275,20.0]
[1672621423196,18.8898333,9.9327,9.9276,54.76062255]
[1672621423396,18.8898333,9.9327,9.9277,20.0]
[1672621423725,18.8898333,9.9327,9.9277,74.76062255]
[1672621425175,18.8898333,9.9327,9.9277,147.59108787]
[1672621428036,18.8898333,9.9327,9.9202,646.40826522]